Cogmind - Beta 10.2 @@@ ROGUE MODE // 2021.02.24 @ 02:56:51 Player: WayneKnight Result: Self-destructed Performance ------------- Evolutions (2) 1000 Regions Visited (5) 1000 Robots Destroyed (40) 200 Value Destroyed (806) 806 Prototype IDs (25) 500 Alien Tech Used (0) 0 Bonus (160) 160 TOTAL SCORE: 3666 Bonus ------- Follower Combat Kills 164 Aligned with FarCom 300 Friendly Fire -304 Cogmind --------- Core Integrity 550/550 Matter 265/300 Energy 290/290 System Corruption 1% Temperature Cool (0) Movement Treading (180) Ox1 Location -8/Materials Parts ------- > --- POWER (1) -------- Improved Deuterium Engine > --- PROPULSION (3) --- Light Treads Light Treads Light Treads > --- UTILITY (5) ------ Large Storage Unit High-capacity Storage Unit High-capacity Storage Unit Light Armor Plating Improved Medium Armor Plating > --- WEAPON (2) ------- Minigun Enhanced Autogun > --- INVENTORY (26) --- Light Treads Light Treads Combat Airjet Combat Airjet Large Storage Unit Advanced Signal Interpreter Advanced Signal Interpreter Insulated Plating Hacking Suite System Shield System Backup Module Particle Gun Heavy Particle Cannon Heavy Assault Rifle Heavy Assault Rifle High-powered Shotgun AWS/Gauss Advanced EMP Blaster Rocket Launcher Mini Grenade Launcher Datajack Makeshift Spear Deploy-a-Sentry Deploy-a-Sentry Deploy-a-Sentry Peak State ------------ > --- POWER ------------ Improved Deuterium Engine > --- PROPULSION ------- Light Treads Light Treads Light Treads > --- UTILITY ---------- Large Storage Unit High-capacity Storage Unit High-capacity Storage Unit Light Armor Plating Improved Medium Armor Plating > --- WEAPON ----------- Minigun Enhanced Autogun > --- INVENTORY -------- Light Treads Light Treads Combat Airjet Combat Airjet High-capacity Matter Pod Advanced Signal Interpreter Advanced Signal Interpreter Insulated Plating Hacking Suite System Shield System Backup Module Particle Gun Heavy Particle Cannon Light Assault Rifle Heavy Assault Rifle Heavy Assault Rifle AWS/Gauss Advanced EMP Blaster Rocket Launcher Mini Grenade Launcher Datajack Makeshift Spear Deploy-a-Sentry Deploy-a-Sentry Deploy-a-Sentry [Rating: 31] Favorites ----------- Power Improved Ion Engine Engine Improved Ion Engine Power Core Light Nuclear Core Propulsion Light Treads Treads Light Treads Leg Aluminum Leg Utility High-capacity Storage Unit Storage High-capacity Storage Unit Protection Light Armor Plating Weapon Assault Rifle Energy Gun Particle Gun Ballistic Gun Assault Rifle Launcher Mini Grenade Launcher Special Melee Weapon Datajack Build | -11 -10 -10 -10 -9 -8 ------- Run | Scr Mat Min Exi Min Mat Slots Evolved 4 | . . . . . 4 Power . | . . . . . . Propulsion 1 | . . . . . 1 Utility 3 | . . . . . 3 Weapon . | . . . . . . Parts Attached 45 | 1 19 9 3 4 9 Power 4 | . 1 2 . 1 . Engine 3 | . . 2 . 1 . Core 1 | . 1 . . . . Reactor . | . . . . . . Propulsion 7 | . 3 3 . . 1 Treads 7 | . 3 3 . . 1 Leg . | . . . . . . Wheel . | . . . . . . Hover . | . . . . . . Flight . | . . . . . . Utility 12 | . 6 . 2 . 4 Device . | . . . . . . Storage 7 | . 3 . 2 . 2 Processor . | . . . . . . Hackware . | . . . . . . Protection 5 | . 3 . . . 2 Artifact . | . . . . . . Weapon 22 | 1 9 4 1 3 4 Energy Gun 5 | 1 4 . . . . Energy Cannon . | . . . . . . Ballistic Gun 9 | . 2 3 . 1 3 Ballistic Cannon . | . . . . . . Launcher 7 | . 2 1 1 2 1 Special Weapon . | . . . . . . Impact Weapon . | . . . . . . Slashing Weapon . | . . . . . . Piercing Weapon . | . . . . . . Special Melee Weapon 1 | . 1 . . . . Unidentified Prototypes 2 | . . . . . 2 Parts Lost 2 | . 2 . . . . Power 1 | . 1 . . . . Propulsion . | . . . . . . Utility . | . . . . . . Weapon 1 | . 1 . . . . Highest Loss Streak 1 | . 1 . . . . Average Slot Usage (%) 99 | . 99 100 100 100 99 Engine 9 | . 3 12 14 14 9 Core 3 | . 10 1 . . . Treads 23 | . 14 28 28 28 26 Leg 4 | . 13 . . . . Storage 24 | . 19 28 28 28 26 Protection 6 | . 7 . . . 17 Energy Gun 4 | . 13 . . . . Ballistic Gun 19 | . 13 27 28 22 17 Launcher 1 | . . . . 5 . Naked Turns . | . . . . . . Heaviest Build 109 | 13 43 44 76 79 109 Greatest Support 60 | 20 40 40 40 40 60 Greatest Overweight (x) 1 | . 1 1 1 1 1 Average Overweight (x) . | . . . 1 1 1 Largest Inventory Capacity 26 | 6 16 16 20 20 26 Average Capacity 17 | 6 11 16 18 20 25 Most Carried 26 | 6 16 16 20 20 26 Average Carried 16 | 6 10 15 17 20 23 Final Capacity 26 | 6 16 16 20 20 26 Final Carried 26 | 6 16 16 20 20 26 Class Distribution -------------------- 52% | Mutant 47% | Hauler-Mutant Dominant Class ---------------- Mutant | -10/Materials Mutant | -10/Mines Hauler-Mutant | -10/Exiles Hauler-Mutant | -9/Mines Hauler-Mutant | -8/Materials Resources | -11 -10 -10 -10 -9 -8 ----------- Run | Scr Mat Min Exi Min Mat Matter Collected 1341 | 200 381 346 20 113 281 Remotely . | . . . . . . Salvage Created 1242 | 64 520 124 . 81 453 Parts 75 | 2 28 10 . 11 24 Haulers Intercepted 3 | . 2 . . . 1 Recyclers Shooed . | . . . . . . Parts Field Recycled . | . . . . . . Retrieved Matter . | . . . . . . Parts Self-Destructed . | . . . . . . Prevented . | . . . . . . Kills | -11 -10 -10 -10 -9 -8 ------- Run | Scr Mat Min Exi Min Mat Combat Hostiles Destroyed 25 | . 10 7 . 4 4 Guns 18 | . 8 4 . 2 4 AOE 7 | . 2 3 . 2 . Classes Destroyed 9 | 1 4 . . 2 2 Worker 2 | . . . . 1 1 Builder 1 | . . . . 1 . Hauler 3 | . 2 . . . 1 Recycler 2 | 1 . . . . 1 Watcher 5 | . 3 . . . 2 Swarmer 12 | . 2 5 . 3 2 Grunt 12 | . 8 2 . 1 1 Sentry 1 | . . . . . 1 Hunter 1 | . . . . . 1 Thug 1 | . . . . . 1 Best Kill Streak 3 | 1 2 3 . 3 2 Combat Bots Only 3 | . 2 3 . 2 2 Max Kills in Single Turn 2 | 1 1 2 . 2 2 Gunslinging . | . . . . . . Exploded 2 | . 1 2 . 2 . Melee . | . . . . . . Uniques/NPCs Destroyed . | . . . . . . Combat | -11 -10 -10 -10 -9 -8 -------- Run | Scr Mat Min Exi Min Mat Damage Taken 1115 | . 347 260 . 45 463 Core 95 | . 37 50 . 8 . Absorbed by Shields . | . . . . . . Core Remaining (%) 81 | 100 . . . 62 . Volleys Fired 109 | 3 42 18 . 10 36 Largest 2 | 2 2 2 . 2 2 Hottest 85 | 70 85 40 . 43 59 Shots Fired 209 | 6 81 33 . 17 72 Gun 199 | 6 78 30 . 14 71 Cannon . | . . . . . . Launcher 10 | . 3 3 . 3 1 Special . | . . . . . . Kinetic 158 | 4 39 30 . 14 71 Thermal 41 | 2 39 . . . . Explosive 9 | . 3 3 . 3 . Electromagnetic 1 | . . . . . 1 Robot Hit Streak 14 | 5 13 11 . 13 14 Robot Miss Streak 5 | 1 3 5 . 1 3 Penetration Max . | . . . . . . Secondary Targets 2 | . . 2 . . . Max Gunslinging Chain 1 | . . 1 . . . Shots Hit Robots 134 | 5 51 19 . 10 49 Core Hits 65 | 2 27 8 . 6 22 Critical Hits 3 | . . . . . 3 Critical Kills . | . . . . . . Critical Parts Destroyed 3 | . . . . . 3 Melee Attacks 2 | . 2 . . . . Impact . | . . . . . . Slashing . | . . . . . . Piercing . | . . . . . . Sneak Attacks 2 | . 2 . . . . Combat Hostiles . | . . . . . . Follow-up Attacks . | . . . . . . Damage Inflicted 2813 | 64 807 433 . 730 779 Guns 1722 | 64 618 204 . 120 716 Cannons . | . . . . . . Explosions 1009 | . 182 224 . 540 63 Melee . | . . . . . . Ramming 82 | . 7 5 . 70 . Kinetic 1338 | 39 259 204 . 120 716 Thermal 561 | 25 359 . . 177 . Explosive 769 | . 182 224 . 363 . Electromagnetic 63 | . . . . . 63 Impact . | . . . . . . Slashing . | . . . . . . Piercing . | . . . . . . Highest Corruption 1 | . . . . . 1 Average Corruption 1 | . . . . . 1 Corruption Purged . | . . . . . . Effects 7 | . . . . . 7 Message Errors 6 | . . . . . 6 Energy Discharges 1 | . . . . . 1 Overload Shots . | . . . . . . Overflow Damage 84 | . 34 . . 50 . Projectiles . | . . . . . . Explosions 84 | . 34 . . 50 . Melee . | . . . . . . Knockbacks 1 | . . . . 1 . Impact 1 | . . . . 1 . Kinetic . | . . . . . . Secondary . | . . . . . . Self-Inflicted Damage 141 | . 81 . . . 60 Shots 6 | . 3 . . . 3 Rammed 7 | . 1 2 . 4 . Targets Rammed 8 | . 1 2 . 5 . Kicked . | . . . . . . Crushed 1 | . . . . 1 . Highest Temperature 144 | 18 144 23 . 2 41 Average Temperature 37 | 10 47 9 . 1 16 Received Heat Transfer 282 | . 138 60 . 12 72 Siege Activations . | . . . . . . Robots Corrupted . | . . . . . . Combat Hostiles . | . . . . . . Parts Fried 1 | . 1 . . . . Impact Corruptions . | . . . . . . Robots Melted . | . . . . . . Combat Hostiles . | . . . . . . Parts Melted 1 | . 1 . . . . Heat Transferred 1199 | 74 925 . . 200 . Parts Sabotaged . | . . . . . . Parts Stolen . | . . . . . . Parts Stripped . | . . . . . . Power Chain Reactions 2 | . . . . . 2 Missiles Intercepted . | . . . . . . Alert | -11 -10 -10 -10 -9 -8 ------- Run | Scr Mat Min Exi Min Mat Peak Influence 176 | 5 151 176 . 149 151 Initial 56 | . 3 56 . . 39 Average 40 | 1 45 40 . 39 32 Maximum Alert Level . | . . . . . . Low Security (%) 100 | 100 100 100 . 100 100 Level 1 . | . . . . . . Level 2 . | . . . . . . Level 3 . | . . . . . . Level 4 . | . . . . . . Level 5 . | . . . . . . High Security . | . . . . . . Max Security . | . . . . . . Squads Dispatched 7 | . 3 1 . 1 2 Investigation 3 | . 2 . . 1 . Extermination . | . . . . . . Reinforcement 3 | . 1 . . . 2 Assault 1 | . . 1 . . . Garrison . | . . . . . . Intercept . | . . . . . . Construction Impeded . | . . . . . . Haulers Reinforced . | . . . . . . Stealth | -11 -10 -10 -10 -9 -8 --------- Run | Scr Mat Min Exi Min Mat Distress Signals 1 | . . . . . 1 Communications Jammed . | . . . . . . Distress Signals . | . . . . . . Times Spotted 60 | . 16 10 . 11 23 Peak Tracking Total 6 | . 3 3 . 3 6 Tactical Retreats 2 | . . . . 2 . Traps | -11 -10 -10 -10 -9 -8 ------- Run | Scr Mat Min Exi Min Mat Traps Triggered . | . . . . . . Indirectly . | . . . . . . Trap Hack Attempts 72 | . 72 . . . . Triggered . | . . . . . . Disarmed . | . . . . . . Reprogrammed 6 | . 6 . . . . Reused 2 | . 1 . . 1 . Traps Extracted . | . . . . . . Installed 4 | . . . . 4 . Triggered 2 | . 1 . . 1 . Machines | -11 -10 -10 -10 -9 -8 ---------- Run | Scr Mat Min Exi Min Mat Machines Disabled 5 | . . . . 4 1 Max in Single Turn 3 | . . . . 3 1 Machines Sabotaged . | . . . . . . Garrisons Compromised . | . . . . . . Overloaded Fab Kills . | . . . . . . Fab Network Shutdowns . | . . . . . . Hacking | -11 -10 -10 -10 -9 -8 --------- Run | Scr Mat Min Exi Min Mat Machines Accessed 20 | . 10 . 2 2 6 Terminals 11 | . 7 . . . 4 Fabricators . | . . . . . . Repair Stations 1 | . 1 . . . . Recycling Units 2 | . 2 . . . . Scanalyzers 2 | . . . . . 2 Garrison Access . | . . . . . . Total Hacks 50 | . 30 . 2 2 16 Successful 35 | . 21 . 2 2 10 Failed 15 | . 9 . . . 6 Catastrophic 2 | . . . . . 2 Database Lockouts . | . . . . . . Manual 32 | . 23 . 1 . 8 Terminals 34 | . 23 . . . 11 Fabricators . | . . . . . . Repair Stations 4 | . 4 . . . . Recycling Units 3 | . 3 . . . . Scanalyzers 5 | . . . . . 5 Garrison Access . | . . . . . . Terminal Hacks 12 | . 5 . 2 2 3 Record 1 | . . . 1 . . Robot Analysis 5 | . 4 . . . 1 Open Door 2 | . . . . 2 . Terminal Index 1 | . 1 . . . . Unreport Threat 1 | . . . . . 1 Locate Traps 1 | . . . . . 1 EX-Prototype ID Bank 1 | . . . 1 . . Fabricator Hacks . | . . . . . . Repair Station Hacks 3 | . 3 . . . . Scan Component 2 | . 2 . . . . Repair 1 | . 1 . . . . Recycling Unit Hacks 1 | . 1 . . . . Report Inventory 1 | . 1 . . . . Scanalyzer 5 | . . . . . 5 Insert Component 2 | . . . . . 2 Analyze 3 | . . . . . 3 Garrison Access Hacks . | . . . . . . Unauthorized Hacks 14 | . 12 . . . 2 Terminals 12 | . 10 . . . 2 Track 5 | . 5 . . . . Assimilate 1 | . 1 . . . . Botnet 5 | . 3 . . . 2 Operators 1 | . 1 . . . . Fabricators . | . . . . . . Repair Stations . | . . . . . . Recycling Units 2 | . 2 . . . . Tunnel 2 | . 2 . . . . Scanalyzers . | . . . . . . Garrison Access . | . . . . . . Data Cores Recovered . | . . . . . . Used . | . . . . . . Hacking Detections 14 | . 8 . . . 6 Full Trace Events 1 | . 1 . . . . Feedback Events . | . . . . . . Feedback Blocked . | . . . . . . Robot Schematics Acquired . | . . . . . . Robots Built . | . . . . . . Matter . | . . . . . . Time . | . . . . . . Total Robot Build Rating . | . . . . . . Part Schematics Acquired 2 | . . . . . 2 Parts Built . | . . . . . . Matter . | . . . . . . Time . | . . . . . . Total Part Build Rating . | . . . . . . Parts Repaired 1 | . 1 . . . . Time 26 | . 26 . . . . Parts Recycled . | . . . . . . Recycled Matter . | . . . . . . Retrieved Matter . | . . . . . . Retrieved Components . | . . . . . . Parts Scanalyzed 2 | . . . . . 2 Part Schematics Acquired 2 | . . . . . 2 Parts Damaged . | . . . . . . Bothacking | -11 -10 -10 -10 -9 -8 ------------ Run | Scr Mat Min Exi Min Mat Used RIF Installer . | . . . . . . Robots Hacked 1 | . 1 . . . . Non-combat 1 | . 1 . . . . Combat . | . . . . . . Robot Hacks Applied 1 | . 1 . . . . no_distress 1 | . 1 . . . . Relay Couplers Released . | . . . . . . Robots Rewired . | . . . . . . Allies Hacked . | . . . . . . Hacks Repelled . | . . . . . . Allies | -11 -10 -10 -10 -9 -8 -------- Run | Scr Mat Min Exi Min Mat Total Allies 8 | . 1 4 . 3 . Largest Group 3 | . 1 3 1 3 3 Highest-Rated Group 84 | . 10 84 22 40 40 Highest-Rated Ally 31 | . 10 31 22 16 16 Total Orders . | . . . . . . Ally Attacks 58 | . . 18 . 19 21 Total Damage 759 | . . 312 . 232 215 Kills 9 | . . 2 . 5 2 Allies Corrupted . | . . . . . . Allies Melted . | . . . . . . Intel | -11 -10 -10 -10 -9 -8 ------- Run | Scr Mat Min Exi Min Mat Robot Analysis Total 5 | . 4 . . . 1 Derelict Logs Recovered 2 | . . 1 . 1 . Drone Launches . | . . . . . . Drone Recoveries . | . . . . . . Exploration | -11 -10 -10 -10 -9 -8 ------------- Run | Scr Mat Min Exi Min Mat Turns Passed 9452 | 11 3136 1502 873 1867 2063 Spaces Moved 3631 | 1 1068 754 480 760 568 Core . | . . . . . . Treads 3241 | . 679 754 480 760 568 Legs 390 | 1 389 . . . . Wheels . | . . . . . . Hover . | . . . . . . Flight . | . . . . . . Fastest Speed 120 | 120 120 160 180 180 180 Average Speed 172 | 120 155 177 180 180 180 Slowest Speed 180 | 120 180 180 180 180 180 Overloaded Moves . | . . . . . . Propulsion Burnouts . | . . . . . . Robots Hopped . | . . . . . . Cave-ins Triggered . | . . . . . . Exploration Rate (%) 68 | 2 97 99 72 99 43 Regions Visited 5 Branch Regions 3 Pre-discovered Areas 4 | . 2 . 1 1 . Known Exits Taken . | . . . . . . Unknown Exits Taken 5 | 1 1 1 1 1 . Scrap Searched 4 | . . 1 . 3 . Spaces Dug . | . . . . . . Terrain Destroyed 88 | . 12 20 . 51 5 Melee . | . . . . . . Projectile . | . . . . . . AOE 88 | . 12 20 . 51 5 Terrain Rammed . | . . . . . . Walls Destroyed . | . . . . . . Machines Disabled . | . . . . . . Actions | -11 -10 -10 -10 -9 -8 --------- Run | Scr Mat Min Exi Min Mat Total 6636 | 4 2462 890 491 1242 1547 Wait 2683 | . 1224 92 . 449 918 Move 3626 | . 1067 753 479 759 568 Hop . | . . . . . . Pick Up 45 | . 20 6 5 4 10 Fast Attach 8 | . 4 1 . . 3 Attach 4 | . 2 . . . 2 Detach 2 | . 1 . . . 1 Swap 33 | 1 13 8 3 4 4 Drop 38 | . 14 10 4 5 5 Fire 109 | 3 42 18 . 10 36 Melee 2 | . 2 . . . . Ram . | . . . . . . Kick 1 | . 1 . . . . Crush 7 | . . 2 . 5 . Escape Stasis . | . . . . . . Rewire 2 | . . . . 2 . Trap 76 | . 72 . . 4 . Miscellaneous . | . . . . . . Route ------- -11/Scrapyard -10/Materials (discovered 4 exits: [*Mat x3] / [*Min]) -10/Mines (discovered 3 exits: [*Mat x2] / *Exi) -10/Exiles -9/Mines (discovered 2 exits: *Mat x2) -8/Materials (discovered 1 exit: [*Fac]) History --------- Turn | Location | Event 12 | -11/Scrapyard | Discovered new exit (range 0) 12 | -11/Scrapyard | Entered Materials 313 | -10/Materials | Build established: Mutant 467 | -10/Materials | Discovered new exit (range 12) 1464 | -10/Materials | Discovered new exit (range 10) 1712 | -10/Materials | Discovered new exit (range 6) 2980 | -10/Materials | Discovered new exit (range 15) 3026 | -10/Materials | Repaired Assault Rifle 3148 | -10/Materials | Entered Mines 3149 | -10/Mines | Assembled infested the area 3201 | -10/Mines | Met 8R-AWN 3227 | -10/Mines | Discovered new exit (range 5) 3378 | -10/Mines | Discovered new exit (range 13) 3502 | -10/Mines | A weapon hastily lodged in a ceiling crevice suddenly fell to the ground 3721 | -10/Mines | Discovered new exit (range 4) 3722 | -10/Mines | Met a Derelict testing a Signal Generator 3957 | -10/Mines | Learned Materials security intel 4066 | -10/Mines | Received a Mining Laser from a helpful Derelict 4650 | -10/Mines | Entered Exiles 4650 | -10/Exiles | Accompanied by 1 ally 4694 | -10/Exiles | Welcomed by 8R-AWN 4724 | -10/Exiles | Met EX-HEX 4776 | -10/Exiles | Met EX-BIN 4838 | -10/Exiles | Met EX-DEC 4845 | -10/Exiles | Learned location of Zion (-7) 5199 | -10/Exiles | Aligned with FarCom system 5201 | -10/Exiles | Given EX-Vault access code 5243 | -10/Exiles | Opened EX-Vault 5247 | -10/Exiles | Build established: Hauler-Mutant 5257 | -10/Exiles | Found AWS/Gauss 5298 | -10/Exiles | Warned to stay clear of 0b10 Research branches 5336 | -10/Exiles | Found Deploy-a-Sentry 5339 | -10/Exiles | Found Deploy-a-Sentry 5342 | -10/Exiles | Found Deploy-a-Sentry 5498 | -10/Exiles | Discovered new exit (range 14) 5523 | -10/Exiles | Stole two prototypes: AWS/Gauss, Deploy-a-Sentry 5523 | -10/Exiles | Entered Mines 5531 | -9/Mines | Found the Drone Emporium 5573 | -9/Mines | Received a Rocket Launcher from a helpful Derelict 5731 | -9/Mines | Discovered new exit (range 6) 5775 | -9/Mines | Found a hidden stash of uninstalled traps 5997 | -9/Mines | Learned Materials emergency access door positions 6221 | -9/Mines | Assisted by bots powering up and referring to "LRC-V3" 6538 | -9/Mines | Met a Derelict shopkeep closing up shop 7160 | -9/Mines | Learned location of Storage (-9) 7360 | -9/Mines | Discovered new exit (range 11) 7390 | -9/Mines | Entered Materials 7390 | -8/Materials | Accompanied by 3 allies 7390 | -8/Materials | Evolved 4 slots: Propulsion x1, Utility x3 8886 | -8/Materials | Discovered new exit (range 3) 9453 | -8/Materials | Self-destructed Last Messages --------------- 08976_ Connecting with Scanalyzer... >>Insert(Adv. Signal Interpreter) Scanning Adv. Signal Interpreter... Ready to analyze. >>Scanalyze Scanning: Adv. Signal Interpreter... Scan incomplete, additional scanning required. >>Scanalyze Scanning: Adv. Signal Interpreter... Schematic downloaded. 08984_ K-01 Serf cleans the Neutrino Reactor. 09032_ O-16 Technician: "IFF HANDSHAKE FAILED. SECURING TERMINAL." 09035_ ALERT: Hostiles spotted, dispatching reinforcements to Terminal M004. 09090_ HCI8WH38M72H<79:MEKWHJ 09279_ Penetrated by Slug. 09287_ H-55 Commando destroyed. 09295_ Acquired 47 matter. 09430_ W-25 Informer suffers critical hit. 09430_ Destroyed Imp. Hover Unit. Map ----- +----------------------------------------------------+ | #?# + """ """ # | | "T" #?# # """ """ # | | ############# #################+#### """ """ # | | # # % #???# """ # ## # | | # """ """ # #???# """ ! # "" ############ | | # """"""""" + #???# """ # "" # ! #???? | | # """"" # #???# # T" # #???? | | # # #???# #! "" # """ #???? | | # # #???# "Y" # "" # """ #???? | | # # % #???# """ #/ + """ /#???? | | #############% %#???#! ! w ####### #???? | | ????????????#*% #########+##############+###???? | | ############# % ####### # + #?????? | | % # ####### #?????? | | %% # | #?????# #?????? | | !] # | #?????# #?????? | | ########+######## # #?????# #?????? | | ? ?????# = % ] ####### #######????## ##????? | | ?!???????# # # ############ #????? | | ?????????# # "" + T #????? | | ?????????# # """ # ######### #????? | | ?????????# """ """ # """ # #] ##########? | | ?????????# """ """ # ?# # #?# # | | ?????????# """ """ #####?# ## #?# # | | ?????????# #???### ## #?# """"" # | | ?????????#?/######?#???# @ ##+####+### """"" # | | ??????????????########## # """"" # | | ??????? + # | | ??????????????########## "T" """ # # | | ???????????????????????# """ ## "" # | | ???????????????########## """ ## """# | | ???????????????# # ## S"# | | ???????????????# """"" # ##[ # | | ???????????????# """"" + != ########## | | ???????????????# """"" # != #????????? | | ???????????????# """"" ## ###+## #????????? | | ???????????????# """"" ## ## # ##????????? | | ???????????????# """"" ## ## # #?????????? | | ???????????????# """"" ## ## # ########??? | | ???????????????# ? ## ## # # #??? | | ???????????????####?###### + # # ! #??? | | ?????????????????????????# ## # # #??? | | ?????????????????????????# ## # # #??? | | ?????????????????????????# ###### # #??? | | ????????????????????######/#????# #? ???? | | ????????????????????# ###### ####+#????? | | ????????????????????# """ + #????? | | ????????????????????# """ ######### ####?? | | ????????????????????# """ #???????# !!##? | | ????????????????????# #???????# !#? | +----------------------------------------------------+ Best States ------------- Heat Dissipation 31 Energy Generation 16 Energy Capacity 290 Matter Stores 300 Matter Capacity 300 Sight Range 16 Terrain Scan Density 10 Armor Coverage 375 Core Shielding 20 Weapon Shielding 33 Evasion (%) 40 Recoil Reduction 3 Item Schematics ----------------- Cmb. Airjet | -8/Materials | Scanalyzed Adv. Signal Interpreter | -8/Materials | Scanalyzed Robot Schematics ------------------ None Fabricated ------------ Nothing Alien Tech Used ----------------- None Achievements -------------- None Challenges ------------ None Game ------ Seed ArcFlightLaser Manual? 0 Play Time 00:41:30 Cumulative 262.8 hours Start 2021.02.24 @ 02:21:49 End 2021.02.24 @ 02:56:51 Sessions 1 Manual Loads 0 Difficulty Rogue Special Mode None Game No. 182 Rogue 182 Adventurer 0 Explorer 0 Win Type - Total 6 Types 6/0/0/0/0/0/0/0/0 Lore% 59 Gallery% 67 Achievement% 51 Wizard Run 0 Options --------- ASCII 1 Keyboard 1 Movement Arrows Keybinds 0 Fullscreen 1 Font 24/Smallcaps Map View 76x50 Tactical HUD 1 Map Filters NONE Filters NONE Steam 1 RUN: b3a42906-79a1-49f4-babd-4db42db6d006